bitfinex-derivatives/quotes_ETHF0:USTF0_20240924
["timestamp","ask_amount","ask_price","bid_price","bid_amount"]
[1727210504983,0.37719,2651.0,2650.9,1.4913]
[1727210505376,1.86002628,2651.0,2650.9,1.4913]
[1727210506976,0.37719,2651.0,2650.9,1.4913]
[1727210507281,1.3649059,2651.0,2650.9,1.4913]
[1727210511790,0.37719,2651.0,2650.9,1.4913]
[1727210514588,1.3649059,2651.1,2650.9,1.4913]
[1727210514790,1.3648959,2651.1,2650.9,1.4913]
[1727210515477,0.37718,2651.1,2650.9,1.4913]
[1727210516085,0.37719,2651.0,2650.9,1.4913]
[1727210519783,1.32018,2651.0,2650.9,1.4913]
[1727210521290,2.3078959,2651.0,2650.9,1.4913]
[1727210521486,1.32018,2651.0,2650.9,1.4913]
[1727210522089,2.3078959,2651.0,2650.9,1.4913]
[1727210522892,1.3649059,2651.0,2650.9,1.4913]
[1727210524487,0.37719,2651.0,2650.9,1.4913]
[1727210524884,1.32023,2650.9,2650.8,3.0684]
[1727210525087,1.32032,2650.7,2650.6,3.0019]
[1727210525289,6.00832153,2650.7,2650.6,3.0019]
[1727210525685,5.06523153,2650.7,2650.6,3.0019]
[1727210525896,1.85743153,2650.7,2650.6,3.0019]
[1727210526088,1.48020153,2650.8,2650.6,3.0019]
[1727210526281,0.98653079,2650.8,2650.7,0.37723]
[1727210527288,0.37721,2650.9,2650.6,3.0019]
[1727210527289,0.98661607,2650.9,2650.8,0.37722]
[1727210527693,1.48020153,2651.0,2650.8,0.37722]
[1727210527694,0.98661607,2651.0,2650.9,0.37721]
[1727210527895,1.36380607,2651.0,2650.9,1.4585]
[1727210528486,0.37719,2651.0,2650.9,1.4585]
[1727210529293,2.80038153,2651.0,2650.9,1.4585]
[1727210529595,1.32032,2650.7,2650.6,3.0019]
[1727210529789,5.45007237,2650.7,2650.6,4.4572]
[1727210530188,3.97032,2650.7,2650.6,4.4572]
[1727210530691,3.02723,2650.7,2650.6,4.4572]
[1727210531088,4.01367427,2650.7,2650.6,4.4572]
[1727210531395,4.01363286,2650.7,2650.6,4.4572]
[1727210531791,3.02723,2650.7,2650.6,4.4572]
[1727210532197,0.98639417,2650.7,2650.6,4.4572]
[1727210532494,1.139,2650.7,2650.6,4.83445]
[1727210533596,1.139,2650.7,2650.6,4.4572]
[1727210533597,1.51623,2650.7,2650.6,4.4572]
[1727210535788,17.69155237,2650.7,2650.2,0.98874347]
[1727210535988,2.26394,2650.1,2650.0,3.0692]
[1727210536214,2.26394,2650.1,2649.6,0.98874347]
[1727210536215,0.94342,2649.8,2649.6,0.98874347]
[1727210536406,0.94342,2649.8,2649.5,1.48286494]
[1727210536407,0.37741,2649.5,2649.4,1.5057]
[1727210536998,0.98644279,2649.5,2649.4,1.5057]
[1727210537201,0.37741,2649.5,2649.4,1.5057]
[1727210541005,0.37742,2649.4,2648.9,3.2078]
[1727210541213,0.37742,2649.4,2649.0,1.5633]
[1727210541214,3.02746,2649.1,2649.0,1.5633]
[1727210541498,8.31792,2649.1,2649.0,1.5633]
[1727210541908,12.09312,2649.1,2649.0,1.5633]
[1727210543093,8.31792,2649.1,2649.0,1.5633]
[1727210543293,0.37746,2649.1,2649.0,1.5633]
[1727210543491,0.6166,2649.6,2649.0,11.3385]
[1727210543492,0.98644279,2649.6,2649.0,11.3385]
[1727210543694,2.65,2649.7,2649.1,3.2078]
[1727210543904,2.65,2649.7,2649.0,1.94077]
[1727210543905,0.37742,2649.4,2649.0,1.94077]
[1727210544201,2.65,2649.5,2649.0,1.94077]
[1727210544404,0.37743,2649.4,2649.1,0.37746]
[1727210544601,0.37743,2649.4,2649.0,1.5633]
[1727210544906,0.37743,2649.3,2649.0,1.94077]
[1727210545296,0.37745,2649.2,2649.0,1.5633]
[1727210545494,2.65,2649.3,2649.0,1.5633]
[1727210546204,3.02744,2649.3,2649.0,1.5633]
[1727210546508,0.37746,2649.2,2649.0,1.5633]
[1727210546707,2.65,2649.3,2649.1,1.5271]
[1727210547502,0.37745,2649.2,2649.1,1.5271]
[1727210548509,3.02744,2649.3,2649.1,1.5271]
[1727210550314,2.65,2649.3,2649.1,1.5271]
[1727210550613,0.37743,2649.4,2649.1,1.5271]
[1727210550908,0.37743,2649.3,2649.1,1.5271]
[1727210551118,0.37743,2649.4,2649.1,1.90456]
[1727210551315,1.139,2649.4,2649.2,0.37745]
[1727210551511,1.139,2649.4,2649.3,1.5234]
[1727210552513,1.51642,2649.4,2649.3,1.5234]
[1727210554306,1.139,2649.4,2649.3,1.5234]
[1727210555011,3.2078,2649.8,2649.3,5.2978]
[1727210555315,2.65,2649.9,2649.6,0.37739]
[1727210555316,0.37736,2649.9,2649.6,0.37739]
[1727210555506,0.37736,2649.9,2649.7,2.9451]
[1727210555816,0.37736,2649.9,2649.8,1.5477]
[1727210556614,3.02734,2650.0,2649.8,1.5477]
[1727210556916,3.02735,2650.0,2649.8,1.5477]
[1727210558418,2.65,2650.0,2649.8,1.5477]
[1727210558926,3.2078,2650.1,2649.8,1.5477]
[1727210559214,3.58513,2650.1,2649.8,1.5477]
[1727210559916,0.37733,2650.1,2649.8,1.5477]
[1727210562204,0.37733,2650.1,2649.8,1.92506]
[1727210562407,3.789,2650.2,2649.8,1.5477]
[1727210562616,2.65,2650.2,2650.0,0.37733]
[1727210562917,0.37731,2650.2,2649.9,0.37734]
[1727210563111,3.02731,2650.2,2649.9,0.37734]
[1727210563816,0.37733,2650.1,2649.8,1.92505]
[1727210564116,0.37733,2650.1,2649.9,0.37734]
[1727210565107,3.02734,2650.0,2649.8,1.92505]
[1727210566507,0.37735,2649.9,2649.8,1.5477]
[1727210568123,3.02735,2650.0,2649.8,1.92506]
[1727210568326,3.02735,2650.0,2649.8,1.5477]
[1727210568327,0.37735,2649.9,2649.8,1.5477]
[1727210569220,0.37736,2649.8,2649.7,6.1529]
[1727210569421,3.02736,2649.8,2649.7,6.1529]
[1727210569813,2.65,2649.8,2649.7,6.1529]
[1727210570009,3.02736,2649.8,2649.7,6.1529]
[1727210570211,0.37734,2650.0,2649.7,10.30387]
[1727210570423,0.37735,2649.9,2649.8,1.458]
[1727210570917,2.65,2649.9,2649.8,1.458]
[1727210571226,3.02735,2649.9,2649.8,1.458]
[1727210573921,0.37736,2649.8,2649.7,2.9451]
[1727210574318,1.32078,2649.8,2649.7,2.9451]
[1727210574522,1.32078,2649.8,2649.7,1.5264]
[1727210577214,0.37739,2649.6,2649.5,1.442]
[1727210577422,0.37739,2649.6,2649.5,2.8898]
[1727210578919,3.02739,2649.6,2649.5,2.8898]
[1727210579123,7.36789,2649.6,2649.3,1.5002]
[1727210579321,2.65,2649.4,2649.3,1.5002]
[1727210580417,3.02742,2649.4,2649.3,1.5002]
[1727210582422,1.36117595,2649.6,2649.3,1.87763]
[1727210583325,5.9539,2649.9,2649.5,0.37741]
[1727210583326,0.98377595,2649.7,2649.5,0.37741]
[1727210583627,4.68346393,2649.9,2649.5,0.37741]
[1727210583628,0.98377595,2649.8,2649.5,0.37741]
[1727210583826,0.37738,2649.7,2649.5,0.37741]
[1727210584724,0.98377595,2649.8,2649.4,4.19338993]
[1727210584925,0.37739,2649.7,2649.5,0.3774]
[1727210585718,0.37739,2649.6,2649.5,0.3774]
[1727210586028,0.37739,2649.6,2649.4,0.98558993]
[1727210586029,0.3774,2649.6,2649.4,0.37741]
[1727210586234,0.3774,2649.6,2649.4,1.36299993]
[1727210587924,0.3774,2649.6,2649.5,0.05171909]
[1727210590427,0.3774,2649.6,2649.5,1.03730902]
[1727210591328,0.98377595,2649.7,2649.6,0.37739]
[1727210591533,0.98377595,2649.8,2649.7,0.37738]
[1727210591733,0.98377595,2649.8,2649.7,3.33898]
[1727210592034,0.98377595,2649.8,2649.7,4.85979909]
[1727210592232,1.36113595,2649.8,2649.7,4.85979909]
[1727210592428,0.98377595,2649.8,2649.7,4.85979909]
[1727210593931,0.98377595,2649.8,2649.7,8.63339909]
[1727210594131,1.85302393,2649.9,2649.7,4.85979909]
[1727210594936,0.32564091,2649.8,2649.7,4.4307]
[1727210595121,0.32564091,2649.8,2649.7,4.80808]
[1727210596438,4.50302393,2649.9,2649.7,5.79366993]
[1727210597732,1.85301393,2649.9,2649.8,0.37736]
[1727210597935,1.85301393,2649.9,2649.8,0.98558993]
[1727210598126,5.75255191,2650.2,2649.9,0.37735]
[1727210598127,1.47566393,2650.0,2649.9,0.37735]
[1727210598329,1.47566393,2650.0,2649.9,1.36293993]
[1727210598529,1.47566393,2650.1,2650.0,0.37733]
[1727210598731,1.47566393,2650.3,2650.0,7.38691796]
[1727210599042,2.34480191,2650.6,2650.4,0.37726]
[1727210599344,2.34479191,2650.7,2650.5,1.4994]
[1727210599530,0.37724,2650.7,2650.5,1.4994]
[1727210600239,3.10255191,2650.8,2650.5,1.87666]
[1727210600535,2.65,2650.9,2650.5,1.4994]
[1727210600536,4.61755191,2650.9,2650.5,1.4994]
[1727210600726,8.20254191,2651.1,2650.8,0.37722]
[1727210600933,8.20254191,2651.1,2650.7,3.58503]
[1727210600934,0.3772,2651.0,2650.7,3.58503]
[1727210601130,6.23499,2651.1,2650.8,0.37722]
[1727210601334,0.3772,2651.0,2650.7,4.57395914]
[1727210601544,0.3772,2651.0,2650.7,3.58503]
[1727210601735,0.3772,2651.0,2650.7,0.37723]
[1727210601939,2.65,2650.9,2650.8,1.502]
[1727210603330,3.02721,2650.9,2650.8,1.502]
[1727210607445,0.37722,2650.8,2650.6,1.4128]
[1727210607743,0.37722,2650.8,2650.6,2.8368]
[1727210607942,0.37723,2650.8,2650.6,2.8368]
[1727210608340,0.37723,2650.7,2650.6,2.8368]
[1727210608647,3.02723,2650.7,2650.6,2.8368]
[1727210612344,4.39571,2650.9,2650.6,3.21404]
[1727210612843,0.37721,2650.9,2650.7,0.37723]
[1727210613240,0.37719,2651.0,2650.8,0.37722]
[1727210613548,0.37717,2651.2,2650.6,3.77992]
[1727210613844,0.37718,2651.1,2650.9,0.37719]
[1727210614040,0.37718,2651.1,2651.0,2.9236]
[1727210620951,3.02718,2651.2,2651.0,3.30079]
[1727210621153,0.37718,2651.1,2651.0,2.9236]
[1727210621654,0.37718,2651.1,2651.0,3.30079]
[1727210622057,3.02717,2651.2,2651.0,3.30079]
[1727210622259,3.02717,2651.2,2651.1,1.3826]
[1727210626052,0.37718,2651.1,2651.0,2.9236]
[1727210626273,0.37719,2651.0,2650.8,0.37722]
[1727210627153,0.3772,2651.0,2650.8,0.37721]
[1727210628360,0.37721,2650.9,2650.7,1.82942]
[1727210628554,0.3772,2651.0,2650.8,0.37722]
[1727210630864,1.4073,2651.1,2650.7,1.4522]
[1727210630865,2.35026,2651.1,2650.7,1.4522]
[1727210631060,0.37721,2650.9,2650.7,1.82943]
[1727210631750,1.32028,2650.8,2650.7,1.4522]
[1727210631952,0.37722,2650.8,2650.7,1.4522]
[1727210635658,0.37721,2650.9,2650.7,1.82943]
[1727210639263,0.37722,2650.8,2650.7,1.4522]
[1727210640162,0.37722,2650.8,2650.7,1.82943]
[1727210640759,0.37722,2650.8,2650.7,1.4522]
[1727210641662,4.15081,2651.0,2650.7,1.82943]
[1727210641663,0.37722,2650.9,2650.7,1.82943]
[1727210643361,0.37722,2650.9,2650.7,2.81363967]
[1727210643563,0.37722,2650.8,2650.7,2.81363967]
[1727210644573,0.37722,2650.8,2650.7,4.50553681]
[1727210645165,0.37722,2650.8,2650.7,4.12830681]
[1727210645462,2.54028,2650.8,2650.7,2.65199231]
[1727210645863,2.54028,2650.8,2650.7,2.44187989]
[1727210646468,2.54028,2650.8,2650.7,3.64205723]
[1727210646664,8.27907353,2650.8,2650.7,0.98967989]
[1727210646865,9.22213353,2650.8,2650.7,0.98967989]
[1727210647072,1.32032,2650.7,2650.6,3.90537989]
[1727210647373,6.68188353,2650.7,2650.5,0.98967989]
[1727210647677,0.37726,2650.5,2650.4,0.98967989]
[1727210647872,0.37728,2650.4,2650.2,4.4136145]
[1727210648178,0.37728,2650.4,2650.3,2.18979721]
[1727210648876,0.37728,2650.4,2650.3,1.20019772]
[1727210649281,0.37728,2650.4,2650.3,0.98939145]
[1727210650277,0.37729,2650.3,2650.2,2.9373]
[1727210650872,1.59729,2650.4,2650.2,2.9373]
[1727210651476,0.37729,2650.3,2650.2,2.9373]
[1727210652875,4.15095,2650.6,2650.3,0.37729]
[1727210652876,3.57182996,2650.6,2650.3,0.37729]
[1727210653572,0.37726,2650.5,2650.3,0.37729]
[1727210653971,1.59728,2650.4,2650.2,3.3146]
[1727210655780,6.12551996,2650.6,2650.2,2.9373]
[1727210655972,1.22,2650.3,2650.2,3.31461]
[1727210658181,0.37728,2650.4,2650.3,0.37728]
[1727210662177,0.37728,2650.4,2650.3,1.36667145]
[1727210662586,0.37728,2650.4,2650.3,0.37728]
[1727210663484,0.37729,2650.3,2650.2,4.30399145]
[1727210663691,0.37729,2650.3,2650.2,5.50190209]
[1727210663873,0.37729,2650.3,2650.2,4.30399145]
[1727210664690,2.94139,2650.4,2650.3,0.37729]
[1727210665073,1.59729,2650.4,2650.3,0.37729]
[1727210665276,1.85558631,2650.4,2650.3,0.37729]
[1727210665985,1.47829631,2650.4,2650.3,0.37729]
[1727210667492,0.37728,2650.4,2650.3,0.37729]
[1727210669187,3.07556631,2650.5,2650.3,0.37729]
[1727210669890,1.47829631,2650.4,2650.3,0.37729]
[1727210671090,1.85557631,2650.4,2650.3,0.37729]
[1727210671688,1.47829631,2650.4,2650.3,0.37729]
[1727210673490,0.37728,2650.4,2650.3,1.36668145]
[1727210677081,1.22,2650.5,2650.4,0.37728]
[1727210677082,1.59727,2650.5,2650.4,0.37728]
[1727210677281,1.59727,2650.5,2650.3,1.36667145]
[1727210677691,1.85555631,2650.6,2650.5,0.37726]
[1727210677886,0.37726,2650.5,2650.4,0.37727]
[1727210679596,0.37726,2650.5,2650.4,1.36666145]
[1727210680590,0.37726,2650.5,2650.4,0.37727]
[1727210680898,1.85654976,2650.5,2650.4,0.37727]
[1727210681492,0.37726,2650.5,2650.4,0.37727]
[1727210681700,0.37726,2650.5,2650.2,1.36669145]
[1727210681701,0.37729,2650.3,2650.2,1.36669145]
[1727210681904,1.22,2650.3,2650.2,1.36669145]
[1727210682193,1.59729,2650.3,2650.2,0.3773]
[1727210682396,4.51700752,2650.3,2650.2,0.3773]
[1727210683293,4.51700752,2650.3,2650.2,0.3673]
[1727210683591,4.51700752,2650.3,2650.2,1.35669145]
[1727210684792,0.37731,2650.2,2650.1,5.57120145]
[1727210685299,4.51701752,2650.3,2650.2,0.37731]
[1727210685495,3.0376,2650.3,2650.2,0.37731]
[1727210685995,3.0376,2650.3,2650.1,5.57120145]
[1727210686190,1.48047413,2650.2,2650.1,5.57120145]
[1727210688391,1.48047413,2650.2,2650.1,6.76968189]
[1727210688592,4.51807413,2650.3,2650.2,0.37731]
[1727210688792,4.51807413,2650.3,2650.2,3.06011549]
[1727210690105,4.51807413,2650.3,2650.2,3.06029952]
[1727210691498,4.51807413,2650.3,2650.2,6.26809952]
[1727210691697,4.51807413,2650.3,2650.2,2.02913196]
[1727210692296,4.51807413,2650.3,2650.2,2.02923357]
[1727210692504,4.51807413,2650.3,2650.2,1.57597447]
[1727210692700,4.51807413,2650.3,2650.2,2.02923489]
[1727210693404,3.0376,2650.3,2650.2,2.02923489]
[1727210694897,3.0376,2650.3,2650.2,2.03004859]
[1727210695607,3.0376,2650.3,2650.2,1.57678817]
[1727210695806,3.0376,2650.3,2650.2,1.65278329]
[1727210696503,3.0376,2650.3,2650.2,2.03009329]
[1727210696809,3.0376,2650.3,2650.2,1.19947817]
[1727210697009,3.98084,2650.3,2650.2,2.68505802]
[1727210697208,3.0376,2650.3,2650.2,2.68505802]
[1727210697412,5.01216996,2650.3,2650.2,2.68505802]
[1727210698115,8.78576996,2650.3,2650.2,2.68505802]
[1727210698308,6.8112,2650.3,2650.2,2.68505802]
[1727210699511,13.75444,2650.3,2650.2,0.99025996]
[1727210699911,1.32058,2650.2,2650.1,0.99025996]
[1727210700215,5.58379264,2650.2,2650.1,0.99025996]
[1727210700413,9.35739264,2650.2,2650.1,2.18969539]
[1727210700610,9.35739264,2650.2,2650.1,0.99025996]
[1727210702314,0.37732,2650.1,2650.0,0.99025996]
[1727210702519,1.59732,2650.1,2650.0,2.189217]
[1727210702713,5.37092,2650.1,2650.0,2.189217]
[1727210702911,3.7736,2650.1,2650.0,2.189217]
[1727210703109,1.97831264,2650.2,2650.1,0.37732]
[1727210703316,7.91041264,2650.3,2650.1,4.15877687]
[1727210703716,5.9321,2650.3,2650.2,1.3783]
[1727210703918,5.5548,2650.3,2650.2,1.3783]
[1727210704118,5.5548,2650.3,2650.2,1.75561]
[1727210704416,4.4278,2650.3,2650.2,1.75561]
[1727210706015,4.80509,2650.3,2650.2,1.75561]
[1727210707721,4.80509,2650.3,2650.2,1.3783]
[1727210709121,2.45749192,2650.4,2650.3,0.37729]
[1727210709327,1.97586224,2650.5,2650.2,2.36825687]
[1727210709520,1.48189657,2650.3,2650.2,4.96341]
[1727210709822,1.48189657,2650.4,2650.3,0.37729]
[1727210710025,1.48189657,2650.4,2650.3,1.57559662]
[1727210710216,4.62056192,2650.8,2650.3,1.57559662]
[1727210710217,1.48189657,2650.5,2650.4,0.37728]
[1727210710418,1.48189657,2650.5,2650.4,2.56483549]
[1727210710613,1.48189657,2650.6,2650.5,0.37726]
[1727210710820,1.48189657,2650.6,2650.5,5.41333447]
[1727210711113,1.48189657,2650.6,2650.5,5.41331948]
[1727210711323,1.48189657,2650.6,2650.5,4.21508763]
[1727210711827,2.70189657,2650.6,2650.5,4.42392449]
[1727210712025,2.70189657,2650.6,2650.5,5.41318574]
[1727210712215,2.70189657,2650.6,2650.5,5.41316205]
[1727210712613,2.70189657,2650.6,2650.5,4.21502125]
[1727210713020,3.07914657,2650.6,2650.5,5.41309745]
[1727210713228,3.07914657,2650.6,2650.5,3.83776125]
[1727210713418,3.07914657,2650.6,2650.5,2.8485]
[1727210714024,1.59725,2650.6,2650.5,3.22576]
[1727210714227,3.07878552,2650.6,2650.5,3.22576]
[1727210714827,3.07878552,2650.6,2650.5,2.8485]
[1727210715031,1.59725,2650.6,2650.5,2.8485]
[1727210716225,1.59725,2650.6,2650.5,3.22576]
[1727210716731,1.59725,2650.6,2650.5,2.8485]
[1727210717325,1.59725,2650.6,2650.5,3.22576]
[1727210717525,1.59725,2650.6,2650.5,2.8485]
[1727210718922,3.07925514,2650.6,2650.5,2.8485]
[1727210719129,1.59725,2650.6,2650.5,2.8485]
[1727210719332,3.07917023,2650.6,2650.5,2.8485]
[1727210720533,3.07917023,2650.6,2650.5,4.21502125]
[1727210721939,3.07917023,2650.6,2650.5,3.83776125]
[1727210722134,3.07917023,2650.6,2650.5,4.21502125]
[1727210722328,2.70192023,2650.6,2650.5,4.21502125]
[1727210722728,1.48192023,2650.6,2650.5,4.21502125]
[1727210723024,1.48192023,2650.9,2650.5,9.0386864]
[1727210723223,1.97586224,2651.0,2650.5,9.0386864]
[1727210723224,0.9877631,2650.8,2650.7,1.86062636]
[1727210723426,1.85912023,2651.0,2650.8,0.37722]
[1727210723427,0.9877631,2650.9,2650.8,0.37722]
[1727210723631,0.9877631,2650.9,2650.8,1.5746064]
[1727210724334,0.9877631,2650.9,2650.8,1.3658533]
[1727210724531,0.9877631,2650.9,2650.8,5.1378533]
[1727210724737,0.9877631,2651.0,2650.9,0.37721]
[1727210724944,0.9877631,2651.0,2650.9,3.19891]
[1727210725938,1.85911023,2651.0,2650.9,3.19891]
[1727210726434,0.37719,2651.0,2650.9,3.19891]
[1727210727231,1.48192023,2651.1,2650.9,3.1989]
[1727210727232,1.85910023,2651.1,2650.9,3.1989]
[1727210727431,0.37719,2651.0,2650.9,2.8217]
[1727210727639,1.59719,2651.0,2650.9,2.8217]
[1727210728036,1.59719,2651.0,2650.6,4.1964333]
[1727210728037,6.47392023,2651.0,2650.6,4.1964333]
[1727210728239,3.52691974,2650.7,2650.6,6.0235]
[1727210728437,3.52691974,2650.7,2650.6,2.8157]
[1727210728438,4.02224023,2650.7,2650.6,2.8157]
[1727210728738,3.07915023,2650.7,2650.6,2.8157]
[1727210732842,2.58421743,2650.7,2650.6,2.8157]
[1727210737745,3.52730743,2650.7,2650.6,1.4384]
[1727210737948,4.02224023,2650.7,2650.6,1.4384]
[1727210738740,2.54032,2650.7,2650.6,1.4384]
[1727210740959,4.02224023,2650.7,2650.6,1.4384]
[1727210742157,0.37726,2650.5,2650.4,2.8386]
[1727210742347,0.37729,2650.3,2650.2,1.4949]
[1727210742543,1.59729,2650.3,2650.2,1.4949]
[1727210742747,0.98714412,2650.3,2650.2,1.87221]
[1727210743152,0.98714412,2650.4,2650.2,1.4949]
[1727210743553,0.98714412,2650.4,2650.3,0.37729]
[1727210746742,1.36442412,2650.4,2650.3,0.37729]
[1727210746959,0.37729,2650.3,2650.2,1.8722]
[1727210747145,0.37729,2650.3,2650.2,1.4949]
[1727210747550,1.36443412,2650.3,2650.2,1.4949]
[1727210747862,0.37729,2650.3,2650.2,1.4949]
[1727210748757,0.37729,2650.3,2650.2,2.4835333]
[1727210750359,1.36443412,2650.3,2650.2,2.4835333]
[1727210752153,1.36443412,2650.3,2650.2,2.8608433]
[1727210752361,0.98714412,2650.3,2650.2,2.8608433]
[1727210752549,0.98714412,2650.4,2650.3,0.37729]
[1727210752751,0.98714412,2650.4,2650.3,1.36593861]
[1727210753863,1.36442412,2650.4,2650.3,1.36593861]
[1727210754358,1.36443045,2650.4,2650.3,1.36593861]
[1727210755456,0.37728,2650.4,2650.3,0.98864861]
[1727210755653,1.3641477,2650.4,2650.3,0.98864861]
[1727210755854,2.5841477,2650.4,2650.3,0.98864861]
[1727210756159,1.59728,2650.4,2650.3,0.98864861]
[1727210756457,1.59728,2650.4,2650.3,0.37729]
[1727210756657,1.59728,2650.4,2650.3,1.36593861]
[1727210757249,1.59728,2650.4,2650.3,0.98864861]
[1727210757660,1.59728,2650.4,2650.2,2.86084861]
[1727210757954,1.36413299,2650.3,2650.2,2.86084861]
[1727210758159,1.36413299,2650.3,2650.2,4.0565838]
[1727210758552,0.98684299,2650.3,2650.2,4.0565838]
[1727210759160,1.36413299,2650.3,2650.2,4.0567964]
[1727210759358,0.98684299,2650.3,2650.2,4.0567455]
[1727210759754,0.98684299,2650.3,2650.2,3.06788429]
[1727210760760,1.36412299,2650.4,2650.3,0.37729]
[1727210760959,0.37728,2650.4,2650.3,1.36609855]
[1727210761370,1.36456246,2650.4,2650.3,1.36609855]
[1727210761556,0.37728,2650.4,2650.3,1.36609855]
[1727210762062,0.37729,2650.3,2650.2,2.86100855]
[1727210762270,1.36495107,2650.3,2650.2,4.05661828]
[1727210762556,1.36495107,2650.3,2650.2,2.86100855]
[1727210762557,0.98766107,2650.3,2650.2,2.86100855]
[1727210762758,0.98766107,2650.3,2650.2,3.06778603]
[1727210762964,3.68166107,2650.4,2650.2,3.06778603]
[1727210763156,3.68166107,2650.4,2650.2,2.86098483]
[1727210763157,0.98738067,2650.3,2650.2,2.86098483]
[1727210763359,0.98738067,2650.3,2650.2,4.05658081]
[1727210764458,0.98738067,2650.3,2650.2,4.05656055]
[1727210764459,0.37729,2650.3,2650.2,4.05656055]
[1727210764858,0.37729,2650.3,2650.2,2.69050151]
[1727210765061,1.36467067,2650.3,2650.2,2.48367613]
[1727210766672,0.37729,2650.3,2650.2,2.48367613]
[1727210766965,1.36467067,2650.3,2650.2,2.48367613]
[1727210767174,0.37729,2650.3,2650.2,2.48367613]
[1727210767464,1.36467067,2650.3,2650.2,2.48367613]
[1727210767666,9.40656023,2650.3,2650.0,0.98877613]
[1727210767868,2.42523023,2650.1,2649.8,3.76967613]
[1727210768070,1.36399897,2649.9,2649.8,3.76967613]
[1727210768261,0.98664897,2650.0,2649.8,4.14703613]
[1727210768466,0.98664897,2650.1,2650.0,0.37733]
[1727210768662,1.48192023,2650.2,2650.0,1.36610613]
[1727210768663,0.98664897,2650.2,2650.0,1.36610613]
[1727210768965,0.98664897,2650.3,2650.1,2.38197613]
[1727210769160,0.98664897,2650.3,2650.2,1.74451]
[1727210769365,0.98664897,2650.3,2650.2,3.12521]
[1727210769565,0.98664897,2650.3,2650.2,9.10758613]
[1727210769765,0.98664897,2650.5,2650.4,0.37728]
[1727210769969,0.98664897,2650.5,2650.4,1.36581451]
[1727210770269,4.57169897,2650.6,2650.4,1.36581451]
[1727210770470,1.36390897,2650.5,2650.4,1.36581451]
[1727210770772,1.36390897,2650.5,2650.4,0.9886452]
[1727210770972,1.36390897,2650.5,2650.4,1.36591572]
[1727210771166,1.36390897,2650.5,2650.4,0.98863572]
[1727210771167,2.58390897,2650.5,2650.4,0.98863572]
[1727210771374,2.58390897,2650.5,2650.4,2.18447951]
[1727210771564,2.58390897,2650.5,2650.4,0.98882336]
[1727210773476,1.59726,2650.5,2650.4,1.19619678]
[1727210773677,3.07918023,2650.5,2650.4,0.9892903]
[1727210774770,1.48192023,2650.5,2650.4,2.18562982]
[1727210774974,3.58506,2650.6,2650.5,0.37726]
[1727210774975,4.68972023,2650.6,2650.5,0.37726]
[1727210775275,4.68972023,2650.6,2650.5,2.56280589]
[1727210775477,4.68972023,2650.6,2650.5,1.57348964]
[1727210776177,1.85915023,2650.7,2650.6,0.37725]
[1727210776383,1.85915023,2650.7,2650.6,2.75189818]
[1727210776763,1.85915023,2650.7,2650.6,2.37464818]
[1727210777170,3.35925023,2650.7,2650.6,2.37464818]
[1727210778486,1.87733,2650.7,2650.6,2.37464818]
[1727210778977,3.35917764,2650.7,2650.6,2.37464818]
[1727210779477,1.5001,2650.7,2650.6,2.75189818]
[1727210779671,3.35982435,2650.7,2650.6,2.37464818]
[1727210779869,3.35980608,2650.7,2650.6,2.37464818]
[1727210781379,3.35980608,2650.7,2650.6,1.3854]
[1727210781380,2.82042,2650.7,2650.6,1.3854]
[1727210781576,1.32038,2650.6,2650.5,0.98924818]
[1727210781768,5.37093,2650.6,2650.4,0.98934725]
[1727210781966,0.37726,2650.5,2650.4,0.98934725]
[1727210782167,1.85966524,2650.5,2650.4,0.98934725]
[1727210782567,0.37726,2650.5,2650.4,0.98934725]
[1727210783782,5.09323,2650.5,2650.4,0.98934725]
[1727210784078,0.9432,2650.4,2650.1,2.48545918]
[1727210784284,2.80345023,2650.2,2650.1,2.48545918]
[1727210784678,2.80341663,2650.2,2650.1,2.48545918]
[1727210784875,1.32058,2650.2,2650.1,2.48545918]
[1727210785077,0.37731,2650.2,2650.1,2.48545918]
[1727210785375,1.86013371,2650.2,2650.1,2.48545918]
[1727210787383,1.86013371,2650.2,2650.1,3.97655918]
[1727210789982,2.80340371,2650.2,2650.1,0.98945918]
[1727210790189,1.32063,2650.1,2650.0,0.98945918]
[1727210790384,1.32063,2650.1,2649.9,2.48865918]
[1727210790385,1.32067,2650.0,2649.9,2.48865918]
[1727210790683,4.52847,2650.0,2649.9,1.4992]
[1727210791081,6.01157534,2650.0,2649.9,1.4992]
[1727210791279,1.32067,2650.0,2649.9,1.4992]
[1727210791688,2.80411123,2650.0,2649.9,1.4992]
[1727210792384,0.37736,2649.8,2649.7,2.40055918]
[1727210792683,0.37736,2649.8,2649.4,0.98945918]
[1727210792684,0.94352,2649.5,2649.4,0.98945918]
[1727210792888,0.94352,2649.5,2649.3,0.98945918]
[1727210792889,1.59741,2649.5,2649.3,0.98945918]
[1727210793086,1.3662015,2649.4,2649.3,0.98945918]
[1727210793281,3.08064656,2649.5,2649.2,0.98945918]
[1727210793282,0.37743,2649.3,2649.2,0.98945918]
[1727210793483,1.59743,2649.3,2649.2,0.98945918]
[1727210794288,3.02743,2649.3,2649.1,3.85415918]
[1727210794486,0.37745,2649.2,2649.1,3.85286844]
[1727210794687,0.37745,2649.2,2649.1,0.98816844]
[1727210794991,0.37746,2649.1,2648.8,0.98816844]
[1727210795192,0.37748,2649.0,2648.7,5.33166844]
[1727210796184,0.37748,2649.0,2648.7,4.3435]
[1727210799993,0.37749,2648.9,2648.7,4.3435]
[1727210800981,3.02751,2648.8,2648.7,4.3435]
[1727210802685,3.02751,2648.8,2648.3,0.37758]
[1727210802686,0.37755,2648.5,2648.3,0.37758]
[1727210802885,2.65,2648.6,2648.4,4.54346]
[1727210803087,3.02754,2648.6,2648.4,4.54346]
[1727210803481,0.37755,2648.5,2648.4,4.1659]
[1727210804288,3.02754,2648.6,2648.4,4.54346]
[1727210804690,0.37755,2648.5,2648.4,4.54346]
[1727210805288,3.02754,2648.6,2648.4,4.54346]
[1727210805895,0.37755,2648.5,2648.4,4.54346]
[1727210806895,3.02754,2648.6,2648.4,4.54346]